[Event "Titled Tuesday Blitz November 15 Late 2022"]
[White "Vargas, Mauricio"]
[Black "Stanisz, Patryk"]
[WhiteFideId "4404572"]
[BlackFideId "1123106"]
[WhiteElo "2025"]
[BlackElo "2069"]
[Result "0-1"]
[Round "08"]
[TimeControl "180+1"]
[Date "2022.11.16"]
[WhiteClock "0:00:02"]
[BlackClock "0:01:39"]

1. e4 {[%clk 0:03:00]}  c5 {[%clk 0:02:59]} 2. Nc3 {[%clk 0:02:59]}  Nc6 {[%clk 0:02:58]} 3. f4 {[%clk 0:03:00]}  g6 {[%clk 0:02:58]} 4. Nf3 {[%clk 0:03:01]}  Rb8 {[%clk 0:02:59]} 5. Bb5 {[%clk 0:03:01]}  Nd4 {[%clk 0:02:59]} 6. Bf1 {[%clk 0:03:01]}  Bg7 {[%clk 0:02:59]} 7. d3 {[%clk 0:03:01]}  b5 {[%clk 0:02:59]} 8. g3 {[%clk 0:03:02]}  b4 {[%clk 0:02:59]} 9. Nd5 {[%clk 0:03:02]}  d6 {[%clk 0:02:54]} 10. Bg2 {[%clk 0:03:01]}  Bg4 {[%clk 0:02:53]} 11. O-O {[%clk 0:03:01]}  Nf6 {[%clk 0:02:52]} 12. Ne3 {[%clk 0:02:59]}  Bxf3 {[%clk 0:02:51]} 13. Bxf3 {[%clk 0:02:59]}  Nxf3+ {[%clk 0:02:52]} 14. Rxf3 {[%clk 0:03:00]}  Nd7 {[%clk 0:02:53]} 15. f5 {[%clk 0:02:59]}  Ne5 {[%clk 0:02:53]} 16. Rf1 {[%clk 0:02:52]}  Bf6 {[%clk 0:02:53]} 17. fxg6 {[%clk 0:02:51]}  hxg6 {[%clk 0:02:53]} 18. Nd5 {[%clk 0:02:45]}  Bg7 {[%clk 0:02:53]} 19. Bg5 {[%clk 0:02:37]}  Nc6 {[%clk 0:02:49]} 20. Qf3 {[%clk 0:02:34]}  O-O {[%clk 0:02:49]} 21. Rae1 {[%clk 0:02:29]}  Qd7 {[%clk 0:02:49]} 22. b3 {[%clk 0:02:21]}  Rb7 {[%clk 0:02:49]} 23. Ne3 {[%clk 0:02:07]}  Bd4 {[%clk 0:02:47]} 24. Kg2 {[%clk 0:02:03]}  Ne5 {[%clk 0:02:46]} 25. Qe2 {[%clk 0:01:44]}  Bc3 {[%clk 0:02:46]} 26. Rd1 {[%clk 0:01:37]}  Kg7 {[%clk 0:02:47]} 27. Nd5 {[%clk 0:01:32]}  Rh8 {[%clk 0:02:46]} 28. h4 {[%clk 0:01:08]}  Qe6 {[%clk 0:02:45]} 29. Bxe7 {[%clk 0:01:02]}  Rxe7 {[%clk 0:02:42]} 30. Nxe7 {[%clk 0:01:02]}  Qxe7 {[%clk 0:02:43]} 31. Rh1 {[%clk 0:00:32]}  a5 {[%clk 0:02:30]} 32. Rdf1 {[%clk 0:00:31]}  Qe6 {[%clk 0:02:29]} 33. h5 {[%clk 0:00:26]}  Qg4 {[%clk 0:02:17]} 34. Qxg4 {[%clk 0:00:24]}  Nxg4 {[%clk 0:02:18]} 35. hxg6 {[%clk 0:00:23]}  Ne3+ {[%clk 0:02:16]} 36. Kf2 {[%clk 0:00:20]}  Nxf1 {[%clk 0:02:01]} 37. Rxf1 {[%clk 0:00:21]}  fxg6 {[%clk 0:01:57]} 38. Kg2 {[%clk 0:00:18]}  Rf8 {[%clk 0:01:57]} 39. Rh1 {[%clk 0:00:17]}  Bd4 {[%clk 0:01:55]} 40. g4 {[%clk 0:00:16]}  Rf2+ {[%clk 0:01:55]} 41. Kg3 {[%clk 0:00:16]}  Rxc2 {[%clk 0:01:56]} 42. Rf1 {[%clk 0:00:15]}  Be5+ {[%clk 0:01:51]} 43. Kf3 {[%clk 0:00:14]}  Rxa2 {[%clk 0:01:49]} 44. Ke3 {[%clk 0:00:04]}  Bd4+ {[%clk 0:01:47]} 45. Kf3 {[%clk 0:00:05]}  Rb2 {[%clk 0:01:47]} 46. Kg3 {[%clk 0:00:05]}  Rxb3 {[%clk 0:01:47]} 47. Ra1 {[%clk 0:00:05]}  Rxd3+ {[%clk 0:01:46]} 48. Kf4 {[%clk 0:00:03]}  Be5+ {[%clk 0:01:46]} 49. Kg5 {[%clk 0:00:03]}  Bf6+ {[%clk 0:01:45]} 50. Kf4 {[%clk 0:00:02]}  Bxa1 {[%clk 0:01:39]} 0-1


[Site "https://www.chess.com"]

[Event "Titled Tuesday Blitz November 15 Late 2022"]
[White "Yano, William Jorge Froes"]
[Black "Harish, Neeraj"]
[WhiteFideId "2112949"]
[BlackFideId "30958130"]
[WhiteElo "2122"]
[BlackElo "1815"]
[Result "0-1"]
[Round "08"]
[TimeControl "180+1"]
[Date "2022.11.16"]
[WhiteClock "0:01:10"]
[BlackClock "0:00:42"]

1. e4 {[%clk 0:02:46]}  c5 {[%clk 0:02:59]} 2. Nf3 {[%clk 0:02:46]}  d6 {[%clk 0:02:58]} 3. Bb5+ {[%clk 0:02:46]}  Bd7 {[%clk 0:02:53]} 4. Bxd7+ {[%clk 0:02:46]}  Qxd7 {[%clk 0:02:54]} 5. O-O {[%clk 0:02:46]}  Nc6 {[%clk 0:02:54]} 6. c3 {[%clk 0:02:47]}  e5 {[%clk 0:02:47]} 7. d4 {[%clk 0:02:46]}  cxd4 {[%clk 0:02:46]} 8. cxd4 {[%clk 0:02:47]}  exd4 {[%clk 0:02:45]} 9. Nxd4 {[%clk 0:02:47]}  Nf6 {[%clk 0:02:44]} 10. Re1 {[%clk 0:02:45]}  Be7 {[%clk 0:02:42]} 11. Nc3 {[%clk 0:02:44]}  O-O {[%clk 0:02:41]} 12. Nf5 {[%clk 0:02:43]}  Rfe8 {[%clk 0:02:36]} 13. Bg5 {[%clk 0:02:34]}  h6 {[%clk 0:02:25]} 14. Bxf6 {[%clk 0:02:18]}  Bxf6 {[%clk 0:02:24]} 15. Qxd6 {[%clk 0:02:14]}  Qxd6 {[%clk 0:02:20]} 16. Nxd6 {[%clk 0:02:14]}  Red8 {[%clk 0:02:16]} 17. Rad1 {[%clk 0:02:04]}  b6 {[%clk 0:02:01]} 18. g3 {[%clk 0:01:56]}  Bd4 {[%clk 0:01:59]} 19. Kg2 {[%clk 0:01:55]}  Rxd6 {[%clk 0:01:57]} 20. Nb5 {[%clk 0:01:54]}  Rd7 {[%clk 0:01:56]} 21. b3 {[%clk 0:01:50]}  a6 {[%clk 0:01:54]} 22. Na3 {[%clk 0:01:49]}  Rad8 {[%clk 0:01:53]} 23. Nc4 {[%clk 0:01:49]}  b5 {[%clk 0:01:51]} 24. Na3 {[%clk 0:01:42]}  Bc5 {[%clk 0:01:35]} 25. Rxd7 {[%clk 0:01:41]}  Rxd7 {[%clk 0:01:36]} 26. Nc2 {[%clk 0:01:42]}  Rd2 {[%clk 0:01:35]} 27. Ne3 {[%clk 0:01:41]}  Rxa2 {[%clk 0:01:31]} 28. g4 {[%clk 0:01:37]}  Ne5 {[%clk 0:01:26]} 29. h3 {[%clk 0:01:36]}  Rxf2+ {[%clk 0:01:12]} 30. Kxf2 {[%clk 0:01:32]}  Nd3+ {[%clk 0:01:13]} 31. Ke2 {[%clk 0:01:26]}  Nxe1 {[%clk 0:01:13]} 32. Nf5 {[%clk 0:01:27]}  Nc2 {[%clk 0:01:10]} 33. Kd3 {[%clk 0:01:26]}  Nb4+ {[%clk 0:01:10]} 34. Kc3 {[%clk 0:01:27]}  Nc6 {[%clk 0:01:07]} 35. Ng3 {[%clk 0:01:27]}  Kf8 {[%clk 0:01:06]} 36. Ne2 {[%clk 0:01:25]}  Ke7 {[%clk 0:01:04]} 37. Nf4 {[%clk 0:01:25]}  Bd4+ {[%clk 0:00:59]} 38. Kd3 {[%clk 0:01:25]}  Be5 {[%clk 0:00:55]} 39. Nd5+ {[%clk 0:01:26]}  Kd6 {[%clk 0:00:54]} 40. b4 {[%clk 0:01:22]}  a5 {[%clk 0:00:51]} 41. bxa5 {[%clk 0:01:20]}  Nxa5 {[%clk 0:00:52]} 42. h4 {[%clk 0:01:19]}  Nc6 {[%clk 0:00:50]} 43. g5 {[%clk 0:01:20]}  hxg5 {[%clk 0:00:49]} 44. hxg5 {[%clk 0:01:20]}  Kc5 {[%clk 0:00:50]} 45. Ne3 {[%clk 0:01:17]}  b4 {[%clk 0:00:48]} 46. Nf5 {[%clk 0:01:17]}  b3 {[%clk 0:00:46]} 47. Ne3 {[%clk 0:01:11]}  Kb4 {[%clk 0:00:45]} 48. Nd5+ {[%clk 0:01:10]}  Ka3 {[%clk 0:00:44]} 49. Nb6 {[%clk 0:01:11]}  b2 {[%clk 0:00:42]} 50. Kc2 {[%clk 0:01:11]}  Ka2 {[%clk 0:00:42]} 51. Nc4 {[%clk 0:01:10]}  b1=Q+ {[%clk 0:00:42]} 0-1


[Site "https://www.chess.com"]

[Event "Titled Tuesday Blitz November 15 Late 2022"]
[White "Yoo, Christopher Woojin"]
[Black "Sabuk, Piotr"]
[WhiteFideId "30909694"]
[BlackFideId "1137565"]
[WhiteElo "2463"]
[BlackElo "2326"]
[Result "1-0"]
[Round "08"]
[TimeControl "180+1"]
[Date "2022.11.15"]
[WhiteClock "0:00:27"]
[BlackClock "0:00:02"]

1. b3 {[%clk 0:03:00]}  e5 {[%clk 0:02:53]} 2. Bb2 {[%clk 0:02:46]}  Nc6 {[%clk 0:02:53]} 3. e3 {[%clk 0:02:40]}  Nf6 {[%clk 0:02:52]} 4. Bb5 {[%clk 0:02:39]}  Bd6 {[%clk 0:02:52]} 5. Na3 {[%clk 0:02:40]}  Na5 {[%clk 0:02:52]} 6. Be2 {[%clk 0:02:38]}  a6 {[%clk 0:02:43]} 7. c4 {[%clk 0:02:37]}  Qe7 {[%clk 0:02:41]} 8. Nc2 {[%clk 0:02:37]}  b5 {[%clk 0:02:34]} 9. cxb5 {[%clk 0:02:26]}  axb5 {[%clk 0:02:34]} 10. Bxb5 {[%clk 0:02:27]}  O-O {[%clk 0:02:32]} 11. Nf3 {[%clk 0:02:26]}  c5 {[%clk 0:02:16]} 12. d3 {[%clk 0:02:21]}  Ba6 {[%clk 0:02:07]} 13. Bxa6 {[%clk 0:02:19]}  Rxa6 {[%clk 0:02:08]} 14. O-O {[%clk 0:02:17]}  Bc7 {[%clk 0:02:01]} 15. e4 {[%clk 0:02:15]}  Nc6 {[%clk 0:01:59]} 16. Ne3 {[%clk 0:02:14]}  Nd4 {[%clk 0:01:45]} 17. Bxd4 {[%clk 0:01:58]}  exd4 {[%clk 0:01:45]} 18. Nf5 {[%clk 0:01:59]}  Qe6 {[%clk 0:01:43]} 19. Ng5 {[%clk 0:01:55]}  Qe8 {[%clk 0:01:40]} 20. Qc2 {[%clk 0:01:51]}  h6 {[%clk 0:01:36]} 21. Qxc5 {[%clk 0:01:43]}  Bxh2+ {[%clk 0:00:45]} 22. Kxh2 {[%clk 0:01:42]}  hxg5 {[%clk 0:00:45]} 23. Qxd4 {[%clk 0:01:41]}  d6 {[%clk 0:00:28]} 24. Rfc1 {[%clk 0:01:35]}  Qe6 {[%clk 0:00:23]} 25. Rc7 {[%clk 0:01:33]}  g6 {[%clk 0:00:22]} 26. Re7 {[%clk 0:01:27]}  Ng4+ {[%clk 0:00:20]} 27. Kg1 {[%clk 0:01:24]}  Qf6 {[%clk 0:00:20]} 28. Qxf6 {[%clk 0:01:23]}  Nxf6 {[%clk 0:00:20]} 29. Ne3 {[%clk 0:01:24]}  Rb8 {[%clk 0:00:19]} 30. Nc2 {[%clk 0:01:13]}  Rc6 {[%clk 0:00:17]} 31. Nd4 {[%clk 0:01:12]}  Rc3 {[%clk 0:00:16]} 32. Rd1 {[%clk 0:01:13]}  Ra8 {[%clk 0:00:15]} 33. a4 {[%clk 0:01:12]}  Ng4 {[%clk 0:00:15]} 34. Rb7 {[%clk 0:00:45]}  Ne5 {[%clk 0:00:13]} 35. Kf1 {[%clk 0:00:39]}  Rxd3 {[%clk 0:00:08]} 36. Rxd3 {[%clk 0:00:35]}  Nxd3 {[%clk 0:00:09]} 37. Rb5 {[%clk 0:00:35]}  Nc5 {[%clk 0:00:08]} 38. f3 {[%clk 0:00:35]}  Kg7 {[%clk 0:00:06]} 39. a5 {[%clk 0:00:35]}  Nd3 {[%clk 0:00:06]} 40. Nc6 {[%clk 0:00:31]}  Kf6 {[%clk 0:00:04]} 41. Rb6 {[%clk 0:00:31]}  Ne5 {[%clk 0:00:04]} 42. b4 {[%clk 0:00:29]}  Nxc6 {[%clk 0:00:04]} 43. Rxc6 {[%clk 0:00:30]}  Ke5 {[%clk 0:00:04]} 44. a6 {[%clk 0:00:30]}  f5 {[%clk 0:00:04]} 45. b5 {[%clk 0:00:29]}  fxe4 {[%clk 0:00:04]} 46. fxe4 {[%clk 0:00:30]}  Kxe4 {[%clk 0:00:02]} 47. Rxd6 {[%clk 0:00:30]}  Kf5 {[%clk 0:00:02]} 48. Ke2 {[%clk 0:00:30]}  g4 {[%clk 0:00:03]} 49. Kd3 {[%clk 0:00:30]}  g3 {[%clk 0:00:03]} 50. Kc4 {[%clk 0:00:28]}  Kf4 {[%clk 0:00:03]} 51. b6 {[%clk 0:00:27]}  Rxa6 {[%clk 0:00:02]} 52. b7 {[%clk 0:00:27]}  Rxd6 {[%clk 0:00:02]} 53. b8=Q {[%clk 0:00:27]} 1-0


[Site "https://www.chess.com"]

[Event "Titled Tuesday Blitz November 15 Late 2022"]
[White "Yurovskykh, Oleksandr"]
[Black "Gasparyan, David"]
[WhiteFideId "14134020"]
[BlackFideId "13311980"]
[WhiteElo "2265"]
[BlackElo "2326"]
[Result "1/2-1/2"]
[Round "08"]
[TimeControl "180+1"]
[Date "2022.11.16"]
[WhiteClock "0:00:08"]
[BlackClock "0:00:23"]

1. d4 {[%clk 0:03:00]}  d6 {[%clk 0:02:56]} 2. Nf3 {[%clk 0:02:52]}  Nd7 {[%clk 0:02:55]} 3. e4 {[%clk 0:02:49]}  c5 {[%clk 0:02:54]} 4. d5 {[%clk 0:02:44]}  g6 {[%clk 0:02:54]} 5. Be2 {[%clk 0:02:36]}  Bg7 {[%clk 0:02:53]} 6. O-O {[%clk 0:02:36]}  Ngf6 {[%clk 0:02:53]} 7. Nc3 {[%clk 0:02:36]}  O-O {[%clk 0:02:53]} 8. h3 {[%clk 0:02:34]}  a6 {[%clk 0:02:49]} 9. a4 {[%clk 0:02:32]}  Rb8 {[%clk 0:02:38]} 10. Bf4 {[%clk 0:02:29]}  b5 {[%clk 0:02:33]} 11. axb5 {[%clk 0:02:28]}  axb5 {[%clk 0:02:34]} 12. e5 {[%clk 0:01:52]}  Nh5 {[%clk 0:02:30]} 13. Bh2 {[%clk 0:01:52]}  b4 {[%clk 0:02:29]} 14. Ne4 {[%clk 0:01:31]}  dxe5 {[%clk 0:02:29]} 15. Nfd2 {[%clk 0:00:49]}  Nf4 {[%clk 0:02:25]} 16. Nc4 {[%clk 0:00:45]}  Bb7 {[%clk 0:02:15]} 17. Re1 {[%clk 0:00:36]}  Nxd5 {[%clk 0:02:09]} 18. Bf1 {[%clk 0:00:35]}  Nf4 {[%clk 0:01:53]} 19. Qd2 {[%clk 0:00:34]}  Ne6 {[%clk 0:01:51]} 20. Rad1 {[%clk 0:00:34]}  Nf6 {[%clk 0:01:42]} 21. Nxf6+ {[%clk 0:00:31]}  exf6 {[%clk 0:01:42]} 22. Qe3 {[%clk 0:00:28]}  Qe7 {[%clk 0:01:40]} 23. c3 {[%clk 0:00:25]}  bxc3 {[%clk 0:01:39]} 24. bxc3 {[%clk 0:00:26]}  Rfd8 {[%clk 0:01:38]} 25. Kh1 {[%clk 0:00:25]}  Qc7 {[%clk 0:01:30]} 26. f3 {[%clk 0:00:23]}  Nf4 {[%clk 0:01:20]} 27. Bg1 {[%clk 0:00:23]}  Rxd1 {[%clk 0:01:16]} 28. Rxd1 {[%clk 0:00:23]}  Nd5 {[%clk 0:01:12]} 29. Qe1 {[%clk 0:00:20]}  f5 {[%clk 0:01:09]} 30. Rb1 {[%clk 0:00:19]}  Re8 {[%clk 0:01:08]} 31. Qd2 {[%clk 0:00:18]}  Nf4 {[%clk 0:01:07]} 32. Be3 {[%clk 0:00:13]}  Nh5 {[%clk 0:01:05]} 33. Kg1 {[%clk 0:00:12]}  e4 {[%clk 0:01:05]} 34. f4 {[%clk 0:00:12]}  Bh6 {[%clk 0:01:04]} 35. Rxb7 {[%clk 0:00:06]}  Qxb7 {[%clk 0:01:03]} 36. Nd6 {[%clk 0:00:07]}  Qd7 {[%clk 0:01:02]} 37. Nxe8 {[%clk 0:00:07]}  Qxe8 {[%clk 0:01:01]} 38. g4 {[%clk 0:00:08]}  fxg4 {[%clk 0:01:00]} 39. hxg4 {[%clk 0:00:09]}  Nf6 {[%clk 0:01:00]} 40. g5 {[%clk 0:00:09]}  Ng4 {[%clk 0:00:59]} 41. gxh6 {[%clk 0:00:09]}  Nxh6 {[%clk 0:00:59]} 42. Bc4 {[%clk 0:00:08]}  Nf5 {[%clk 0:00:59]} 43. Bxc5 {[%clk 0:00:08]}  e3 {[%clk 0:00:52]} 44. Qd5 {[%clk 0:00:08]}  e2 {[%clk 0:00:52]} 45. Qxf7+ {[%clk 0:00:03]}  Qxf7 {[%clk 0:00:53]} 46. Bxf7+ {[%clk 0:00:04]}  Kxf7 {[%clk 0:00:54]} 47. Kf2 {[%clk 0:00:05]}  Ke6 {[%clk 0:00:54]} 48. Kxe2 {[%clk 0:00:05]}  Kd5 {[%clk 0:00:54]} 49. Bf2 {[%clk 0:00:05]}  Kc4 {[%clk 0:00:54]} 50. Kf3 {[%clk 0:00:05]}  Kxc3 {[%clk 0:00:54]} 51. Ke4 {[%clk 0:00:06]}  Kd2 {[%clk 0:00:53]} 52. Ke5 {[%clk 0:00:05]}  Ke2 {[%clk 0:00:54]} 53. Bb6 {[%clk 0:00:04]}  Ne7 {[%clk 0:00:53]} 54. Bc7 {[%clk 0:00:04]}  Ng8 {[%clk 0:00:49]} 55. Ke6 {[%clk 0:00:04]}  Kf3 {[%clk 0:00:50]} 56. Kf7 {[%clk 0:00:04]}  Nh6+ {[%clk 0:00:48]} 57. Kg7 {[%clk 0:00:05]}  Nf5+ {[%clk 0:00:44]} 58. Kxh7 {[%clk 0:00:05]}  Ne7 {[%clk 0:00:44]} 59. Bd6 {[%clk 0:00:05]}  Nf5 {[%clk 0:00:44]} 60. Bb8 {[%clk 0:00:05]}  Nh4 {[%clk 0:00:39]} 61. Kh6 {[%clk 0:00:05]}  Kg4 {[%clk 0:00:39]} 62. Bc7 {[%clk 0:00:05]}  Kf5 {[%clk 0:00:39]} 63. Kg7 {[%clk 0:00:06]}  Nf3 {[%clk 0:00:39]} 64. Kf7 {[%clk 0:00:06]}  Nd4 {[%clk 0:00:40]} 65. Bb8 {[%clk 0:00:06]}  Ne6 {[%clk 0:00:40]} 66. Bd6 {[%clk 0:00:06]}  Nd8+ {[%clk 0:00:40]} 67. Kg7 {[%clk 0:00:06]}  Nb7 {[%clk 0:00:40]} 68. Bc7 {[%clk 0:00:06]}  Nc5 {[%clk 0:00:40]} 69. Kh7 {[%clk 0:00:06]}  Ne6 {[%clk 0:00:38]} 70. Bb8 {[%clk 0:00:07]}  Nd8 {[%clk 0:00:38]} 71. Bc7 {[%clk 0:00:07]}  Nf7 {[%clk 0:00:38]} 72. Kg7 {[%clk 0:00:06]}  Ng5 {[%clk 0:00:23]} 73. fxg5 {[%clk 0:00:06]}  Kxg5 {[%clk 0:00:24]} 74. Kf7 {[%clk 0:00:06]}  Kf5 {[%clk 0:00:24]} 75. Ke7 {[%clk 0:00:06]}  g5 {[%clk 0:00:25]} 76. Kd6 {[%clk 0:00:06]}  g4 {[%clk 0:00:24]} 77. Kd5 {[%clk 0:00:07]}  Kg5 {[%clk 0:00:23]} 78. Bg3 {[%clk 0:00:08]} 1/2-1/2


[Site "https://www.chess.com"]

[Event "Titled Tuesday Blitz November 15 Late 2022"]
[White "Zhalmakhanov, Ramazan"]
[Black "Tari, Aryan"]
[WhiteFideId "13706357"]
[BlackFideId "1510045"]
[WhiteElo "2405"]
[BlackElo "2612"]
[Result "0-1"]
[Round "08"]
[TimeControl "180+1"]
[Date "2022.11.15"]
[WhiteClock "0:00:02"]
[BlackClock "0:00:33"]

1. e4 {[%clk 0:02:57]}  c6 {[%clk 0:03:00]} 2. d4 {[%clk 0:02:55]}  d5 {[%clk 0:03:01]} 3. exd5 {[%clk 0:02:56]}  cxd5 {[%clk 0:03:01]} 4. Bd3 {[%clk 0:02:57]}  Nf6 {[%clk 0:03:00]} 5. c3 {[%clk 0:02:57]}  Bg4 {[%clk 0:03:01]} 6. Qb3 {[%clk 0:02:57]}  Qc7 {[%clk 0:03:01]} 7. h3 {[%clk 0:02:55]}  Bh5 {[%clk 0:03:01]} 8. Ne2 {[%clk 0:02:56]}  e6 {[%clk 0:03:00]} 9. Bf4 {[%clk 0:02:55]}  Qc8 {[%clk 0:02:55]} 10. Nd2 {[%clk 0:02:41]}  Nc6 {[%clk 0:02:54]} 11. O-O {[%clk 0:02:30]}  Be7 {[%clk 0:02:54]} 12. Rfe1 {[%clk 0:02:25]}  O-O {[%clk 0:02:52]} 13. a4 {[%clk 0:02:18]}  a6 {[%clk 0:02:50]} 14. Bg5 {[%clk 0:02:04]}  Bg6 {[%clk 0:02:43]} 15. Nf4 {[%clk 0:01:57]}  Bxd3 {[%clk 0:02:32]} 16. Nxd3 {[%clk 0:01:58]}  Nd7 {[%clk 0:02:32]} 17. Bf4 {[%clk 0:01:49]}  Na5 {[%clk 0:02:24]} 18. Qd1 {[%clk 0:01:49]}  b5 {[%clk 0:02:20]} 19. Re3 {[%clk 0:01:21]}  Kh8 {[%clk 0:01:49]} 20. Rg3 {[%clk 0:01:18]}  Nc4 {[%clk 0:01:48]} 21. Nf3 {[%clk 0:01:13]}  f6 {[%clk 0:01:41]} 22. Qe2 {[%clk 0:01:00]}  Qc6 {[%clk 0:01:26]} 23. Re1 {[%clk 0:00:45]}  bxa4 {[%clk 0:01:22]} 24. Qxe6 {[%clk 0:00:45]}  Qxe6 {[%clk 0:01:22]} 25. Rxe6 {[%clk 0:00:46]}  Rfe8 {[%clk 0:01:19]} 26. Nd2 {[%clk 0:00:37]}  Ndb6 {[%clk 0:01:11]} 27. Kf1 {[%clk 0:00:10]}  Bf8 {[%clk 0:01:11]} 28. Rxe8 {[%clk 0:00:05]}  Rxe8 {[%clk 0:01:11]} 29. Nc5 {[%clk 0:00:02]}  Nxb2 {[%clk 0:01:00]} 30. Re3 {[%clk 0:00:01]}  Rxe3 {[%clk 0:00:50]} 31. Bxe3 {[%clk 0:00:02]}  a3 {[%clk 0:00:47]} 32. Ndb3 {[%clk 0:00:02]}  N6a4 {[%clk 0:00:33]} 0-1


[Site "https://www.chess.com"]

[Event "Titled Tuesday Blitz November 15 Late 2022"]
[White "vjecspec"]
[Black "Taspinar, Yanki"]
[BlackFideId "34561188"]
[WhiteElo "2529"]
[BlackElo "2646"]
[Result "1-0"]
[Round "08"]
[TimeControl "180+1"]
[Date "2022.11.16"]
[WhiteClock "0:00:14"]
[BlackClock "0:00:12"]

1. e4 {[%clk 0:03:00]}  e6 {[%clk 0:02:59]} 2. Qe2 {[%clk 0:02:56]}  c5 {[%clk 0:02:59]} 3. g3 {[%clk 0:02:55]}  Nc6 {[%clk 0:02:59]} 4. c3 {[%clk 0:02:54]}  e5 {[%clk 0:02:58]} 5. Bg2 {[%clk 0:02:52]}  Nf6 {[%clk 0:02:59]} 6. Nf3 {[%clk 0:02:53]}  d6 {[%clk 0:02:59]} 7. O-O {[%clk 0:02:53]}  Be6 {[%clk 0:02:59]} 8. Rd1 {[%clk 0:02:53]}  Be7 {[%clk 0:02:56]} 9. h3 {[%clk 0:02:47]}  O-O {[%clk 0:02:54]} 10. d4 {[%clk 0:02:46]}  cxd4 {[%clk 0:02:54]} 11. cxd4 {[%clk 0:02:47]}  exd4 {[%clk 0:02:51]} 12. Nxd4 {[%clk 0:02:48]}  Nxd4 {[%clk 0:02:51]} 13. Rxd4 {[%clk 0:02:48]}  Qc8 {[%clk 0:02:52]} 14. Nc3 {[%clk 0:02:42]}  Bxh3 {[%clk 0:02:52]} 15. Bf4 {[%clk 0:02:42]}  Bxg2 {[%clk 0:02:48]} 16. Kxg2 {[%clk 0:02:43]}  Qe6 {[%clk 0:02:48]} 17. Rad1 {[%clk 0:02:42]}  Rfd8 {[%clk 0:02:25]} 18. Bg5 {[%clk 0:02:21]}  h6 {[%clk 0:02:22]} 19. Bf4 {[%clk 0:02:10]}  a6 {[%clk 0:02:19]} 20. a3 {[%clk 0:02:06]}  Rac8 {[%clk 0:02:18]} 21. Qd3 {[%clk 0:02:05]}  Nh5 {[%clk 0:01:29]} 22. Bxd6 {[%clk 0:02:00]}  Qg4 {[%clk 0:01:24]} 23. Qf3 {[%clk 0:01:54]}  Qxf3+ {[%clk 0:01:13]} 24. Kxf3 {[%clk 0:01:54]}  Kf8 {[%clk 0:01:06]} 25. e5 {[%clk 0:01:48]}  g6 {[%clk 0:00:56]} 26. Bxe7+ {[%clk 0:01:33]}  Kxe7 {[%clk 0:00:56]} 27. Nd5+ {[%clk 0:01:34]}  Ke8 {[%clk 0:00:53]} 28. g4 {[%clk 0:01:02]}  Ng7 {[%clk 0:00:42]} 29. Nf6+ {[%clk 0:01:02]}  Ke7 {[%clk 0:00:43]} 30. Rd7+ {[%clk 0:01:03]}  Rxd7 {[%clk 0:00:41]} 31. Rxd7+ {[%clk 0:01:04]}  Ke6 {[%clk 0:00:42]} 32. Rxb7 {[%clk 0:01:04]}  Kxe5 {[%clk 0:00:38]} 33. Rxf7 {[%clk 0:01:02]}  Ne6 {[%clk 0:00:37]} 34. Nd7+ {[%clk 0:00:54]}  Kd6 {[%clk 0:00:37]} 35. Nb6 {[%clk 0:00:50]}  Rb8 {[%clk 0:00:18]} 36. Nc4+ {[%clk 0:00:16]}  Kc5 {[%clk 0:00:18]} 37. Rf6 {[%clk 0:00:11]}  Ng5+ {[%clk 0:00:16]} 38. Kg2 {[%clk 0:00:12]}  Kxc4 {[%clk 0:00:14]} 39. Rxg6 {[%clk 0:00:12]}  a5 {[%clk 0:00:11]} 40. Rxh6 {[%clk 0:00:11]}  Ne4 {[%clk 0:00:12]} 41. b4 {[%clk 0:00:10]}  a4 {[%clk 0:00:13]} 42. Re6 {[%clk 0:00:08]}  Nc3 {[%clk 0:00:10]} 43. Re3 {[%clk 0:00:08]}  Nd5 {[%clk 0:00:10]} 44. Rf3 {[%clk 0:00:08]}  Rg8 {[%clk 0:00:09]} 45. Kg3 {[%clk 0:00:09]}  Kd4 {[%clk 0:00:09]} 46. Rf7 {[%clk 0:00:08]}  Ke5 {[%clk 0:00:07]} 47. Rf5+ {[%clk 0:00:08]}  Ke4 {[%clk 0:00:06]} 48. f3+ {[%clk 0:00:09]}  Kd4 {[%clk 0:00:07]} 49. Rf7 {[%clk 0:00:09]}  Ke5 {[%clk 0:00:05]} 50. b5 {[%clk 0:00:09]}  Ke6 {[%clk 0:00:05]} 51. Ra7 {[%clk 0:00:09]}  Nc3 {[%clk 0:00:05]} 52. Rc7 {[%clk 0:00:10]}  Nxb5 {[%clk 0:00:04]} 53. Rc4 {[%clk 0:00:11]}  Ra8 {[%clk 0:00:04]} 54. g5 {[%clk 0:00:10]}  Nd6 {[%clk 0:00:04]} 55. Rb4 {[%clk 0:00:09]}  Kf5 {[%clk 0:00:03]} 56. f4 {[%clk 0:00:08]}  Rc8 {[%clk 0:00:02]} 57. Rxa4 {[%clk 0:00:09]}  Rc3+ {[%clk 0:00:02]} 58. Kf2 {[%clk 0:00:09]}  Ne4+ {[%clk 0:00:02]} 59. Ke2 {[%clk 0:00:08]}  Kxf4 {[%clk 0:00:03]} 60. g6 {[%clk 0:00:07]}  Rg3 {[%clk 0:00:03]} 61. Ra6 {[%clk 0:00:06]}  Rg2+ {[%clk 0:00:03]} 62. Kd3 {[%clk 0:00:06]}  Rd2+ {[%clk 0:00:03]} 63. Kc4 {[%clk 0:00:07]}  Rg2 {[%clk 0:00:03]} 64. Kd4 {[%clk 0:00:07]}  Rd2+ {[%clk 0:00:02]} 65. Kc4 {[%clk 0:00:08]}  Rc2+ {[%clk 0:00:02]} 66. Kd4 {[%clk 0:00:08]}  Rg2 {[%clk 0:00:03]} 67. a4 {[%clk 0:00:08]}  Nd2 {[%clk 0:00:01]} 68. Kc3 {[%clk 0:00:08]}  Ne4+ {[%clk 0:00:02]} 69. Kd4 {[%clk 0:00:08]}  Rg3 {[%clk 0:00:02]} 70. a5 {[%clk 0:00:08]}  Rg1 {[%clk 0:00:02]} 71. Rb6 {[%clk 0:00:07]}  Rd1+ {[%clk 0:00:02]} 72. Kc4 {[%clk 0:00:07]}  Nd6+ {[%clk 0:00:03]} 73. Kc5 {[%clk 0:00:06]}  Nf5 {[%clk 0:00:03]} 74. a6 {[%clk 0:00:06]}  Ra1 {[%clk 0:00:03]} 75. Kb5 {[%clk 0:00:05]}  Nd4+ {[%clk 0:00:03]} 76. Kc5 {[%clk 0:00:05]}  Nf5 {[%clk 0:00:04]} 77. Kd5 {[%clk 0:00:05]}  Ra5+ {[%clk 0:00:03]} 78. Ke6 {[%clk 0:00:05]}  Nd4+ {[%clk 0:00:04]} 79. Kf7 {[%clk 0:00:06]}  Nf5 {[%clk 0:00:04]} 80. Rf6 {[%clk 0:00:06]}  Ke5 {[%clk 0:00:04]} 81. g7 {[%clk 0:00:06]}  Nxg7 {[%clk 0:00:04]} 82. Kxg7 {[%clk 0:00:07]}  Kd5 {[%clk 0:00:04]} 83. Kf7 {[%clk 0:00:08]}  Kc5 {[%clk 0:00:05]} 84. Rf5+ {[%clk 0:00:08]}  Kb6 {[%clk 0:00:05]} 85. Rxa5 {[%clk 0:00:09]}  Ka7 {[%clk 0:00:05]} 86. Ra4 {[%clk 0:00:09]}  Kb6 {[%clk 0:00:06]} 87. Ke6 {[%clk 0:00:10]}  Ka7 {[%clk 0:00:07]} 88. Kd5 {[%clk 0:00:11]}  Kb6 {[%clk 0:00:08]} 89. Kc4 {[%clk 0:00:11]}  Ka7 {[%clk 0:00:09]} 90. Kb5 {[%clk 0:00:12]}  Ka8 {[%clk 0:00:09]} 91. Rh4 {[%clk 0:00:12]}  Kb8 {[%clk 0:00:10]} 92. Rh7 {[%clk 0:00:13]}  Ka8 {[%clk 0:00:11]} 93. Kb6 {[%clk 0:00:13]}  Kb8 {[%clk 0:00:12]} 94. Rh8# {[%clk 0:00:14]} 1-0


[Site "https://www.chess.com"]